bitfinex/quotes_ETHUSD_20240702
["timestamp","ask_amount","ask_price","bid_price","bid_amount"]
[1719942418222,2.4103,3424.0,3422.9,2.3249]
[1719942418367,2.4103,3424.0,3423.6,1.049]
[1719942418569,2.4103,3424.0,3423.5,2.92091]
[1719942418799,2.4103,3424.0,3423.6,2.92089]
[1719942419174,2.4103,3424.0,3423.7,2.92077]
[1719942422205,2.65133,3424.0,3423.3,2.92112]
[1719942422404,1.049,3423.9,3423.1,2.92129]
[1719942422622,0.370033,3423.8,3423.1,2.92129]
[1719942422921,0.370033,3423.8,3423.2,2.92121]
[1719942423719,0.370033,3423.8,3423.3,2.92114]
[1719942426298,5.57193,3424.0,3423.3,2.92114]
[1719942428221,0.50587913,3423.9,3423.3,2.92114]
[1719942428420,0.50587913,3423.8,3423.3,2.92114]
[1719942428608,5.57193,3424.0,3423.3,2.92114]
[1719942428809,5.57193,3424.0,3423.4,2.92106]
[1719942428810,0.50586931,3423.9,3423.4,2.92106]
[1719942428999,0.50586818,3423.8,3423.4,2.92106]
[1719942429195,2.65133,3424.0,3423.4,2.92106]
[1719942429401,0.50586586,3423.9,3423.4,2.92106]
[1719942429725,0.50586586,3423.8,3423.4,2.92106]
[1719942430023,2.4103,3424.0,3423.4,2.92106]
[1719942430319,0.50587399,3423.9,3423.4,2.92106]
[1719942430525,2.4103,3424.0,3423.4,2.92106]
[1719942430825,0.50587281,3423.9,3423.4,2.92106]
[1719942431317,2.4103,3424.0,3423.4,2.92106]
[1719942431498,0.50587021,3423.9,3423.5,2.92098]
[1719942431695,2.4103,3424.0,3423.5,2.92098]
[1719942431894,0.50586938,3423.9,3423.5,2.92098]
[1719942432098,2.40884298,3424.0,3423.5,2.92098]
[1719942432402,0.50586989,3423.9,3423.5,2.92098]
[1719942432598,0.50586989,3423.8,3423.4,2.92106]
[1719942432802,0.50586989,3423.9,3423.4,2.92106]
[1719942433008,0.50588616,3423.8,3423.4,2.92106]
[1719942433296,0.75219262,3423.9,3423.4,2.92106]
[1719942433481,0.50588476,3423.8,3423.4,2.92106]
[1719942433679,0.75219262,3423.9,3423.4,2.92106]
[1719942433904,0.50588507,3423.8,3423.4,2.92106]
[1719942434096,0.75219262,3423.9,3423.4,2.92106]
[1719942434296,0.50588598,3423.8,3423.4,2.92106]
[1719942434522,0.36669216,3423.8,3423.4,2.92106]
[1719942437619,0.50588778,3423.7,3423.4,2.92106]
[1719942437815,0.36669216,3423.8,3423.4,2.92106]
[1719942438022,0.50588828,3423.7,3423.4,2.92106]
[1719942438222,0.75219262,3423.9,3423.4,2.92106]
[1719942438438,0.50588359,3423.8,3423.4,2.92106]
[1719942438610,0.50588359,3423.7,3423.4,2.92106]
[1719942438794,0.50588359,3423.8,3423.4,2.92106]
[1719942438995,1.16462351,3423.8,3423.4,2.92106]
[1719942439196,0.50588359,3423.7,3423.4,2.92106]
[1719942440192,0.65873992,3423.8,3423.4,2.92106]
[1719942440398,0.50588631,3423.7,3423.4,2.92106]
[1719942440706,0.65873992,3423.8,3423.4,2.92106]
[1719942441065,0.50588654,3423.7,3423.4,2.92106]
[1719942441269,0.50588658,3423.6,3423.4,2.92106]
[1719942441558,0.75219262,3423.9,3423.4,2.92106]
[1719942441769,1.11403825,3423.8,3423.4,2.92106]
[1719942441928,0.50588669,3423.7,3423.4,2.92106]
[1719942442127,0.50588669,3423.6,3423.4,2.92106]
[1719942442365,0.75219262,3423.9,3423.4,2.92106]
[1719942442570,0.50588666,3423.8,3423.4,2.92106]
[1719942442864,0.50588666,3423.7,3423.4,2.92106]
[1719942443025,0.50588666,3423.6,3423.4,2.92106]
[1719942443220,2.40884298,3424.0,3423.4,2.92106]
[1719942443425,0.50587271,3423.9,3423.4,2.92106]
[1719942443655,0.50587271,3423.8,3423.4,2.92106]
[1719942443861,0.50587271,3423.7,3423.4,2.92106]
[1719942444035,0.50587271,3423.6,3423.4,2.92106]
[1719942444359,2.40884298,3424.0,3423.4,2.92106]
[1719942444525,0.50586663,3423.9,3423.4,2.92106]
[1719942446167,0.50586663,3423.9,3423.2,5.84238]
[1719942446331,0.50586663,3423.9,3423.3,2.92114]
[1719942446653,6.25927528,3424.0,3423.3,2.92114]
[1719942446654,0.5058808,3423.8,3423.3,2.92114]
[1719942446856,1.47444441,3423.8,3423.3,2.92114]
[1719942447060,0.5058808,3423.7,3423.3,2.92114]
[1719942447377,0.5058808,3423.6,3423.3,2.92114]
[1719942447676,0.5058808,3423.5,3423.3,2.92114]
[1719942447833,0.5058808,3423.9,3423.3,2.92114]
[1719942448034,1.4357701,3423.9,3423.3,2.92114]
[1719942448262,0.5058808,3423.8,3423.3,2.92114]
[1719942448758,0.5058808,3423.7,3423.4,2.92106]
[1719942449064,0.5058808,3423.6,3423.4,2.92106]
[1719942449240,0.5058808,3423.5,3423.4,2.92106]
[1719942449957,5.32941298,3424.0,3423.4,2.92106]
[1719942450270,0.5058672,3423.9,3423.4,2.92106]
[1719942450456,0.50587443,3423.8,3423.4,2.92106]
[1719942450662,6.25928928,3424.0,3423.4,2.92106]
[1719942450663,0.50587443,3423.7,3423.4,2.92106]
[1719942450838,0.50587443,3423.6,3423.4,2.92106]
[1719942451036,0.50587443,3423.5,3423.4,2.92106]
[1719942453056,0.50587589,3423.5,3423.4,2.92106]
[1719942455173,0.50587586,3423.5,3423.4,2.92106]
[1719942456469,0.50588316,3423.5,3423.4,2.92106]
[1719942459683,5.32941298,3424.0,3423.4,2.92106]
[1719942459848,1.89172525,3423.9,3423.4,2.92106]
[1719942460179,1.3858413,3423.9,3423.4,2.92106]
[1719942460341,0.50587531,3423.8,3423.4,2.92106]
[1719942460677,0.50587531,3423.7,3423.4,2.92106]
[1719942460878,0.50587531,3423.8,3423.4,2.92106]
[1719942461042,1.3858413,3423.9,3423.4,2.92106]
[1719942461043,0.50587531,3423.7,3423.4,2.92106]
[1719942461243,0.50587531,3423.8,3423.4,5.84206]
[1719942461444,0.50587531,3423.7,3423.4,5.84206]
[1719942461644,2.40884298,3424.0,3423.4,5.84206]
[1719942461645,0.50587531,3423.6,3423.4,5.84206]
[1719942461835,0.50587531,3423.5,3423.4,2.921]
[1719942462042,0.50587531,3423.5,3423.4,5.1724]
[1719942462943,0.50587531,3423.5,3423.4,8.09341]
[1719942462944,0.50586524,3423.5,3423.4,8.09341]
[1719942463344,0.50586457,3423.5,3423.4,8.09341]
[1719942466124,7.48,3424.1,3423.4,8.09341]
[1719942466311,1.37921345,3424.0,3423.5,2.92096]
[1719942466454,1.37921706,3423.9,3423.5,2.92096]
[1719942466653,1.37921706,3423.8,3423.5,2.92096]
[1719942466964,1.37921706,3423.7,3423.5,2.92096]
[1719942467284,0.50587042,3423.6,3423.5,2.92096]
[1719942467868,1.37918991,3423.6,3423.5,2.92096]
[1719942469433,2.92039,3424.2,3423.5,2.92096]
[1719942469567,0.50586157,3423.6,3423.5,2.92096]
[1719942471097,0.50586157,3423.6,3423.2,2.92121]
[1719942471098,2.3776,3423.5,3423.2,2.92121]
[1719942471278,0.50586157,3423.4,3423.2,5.84239]
[1719942472406,0.50586157,3423.4,3423.3,2.92115]
[1719942472805,0.50588734,3423.4,3423.3,2.92115]
[1719942475433,0.50588734,3423.4,3423.3,5.8423]
[1719942475912,2.464,3423.9,3423.6,2.92088]
[1719942476415,1.37911172,3423.8,3423.6,2.92088]
[1719942476620,1.37911172,3423.7,3423.6,2.92088]
[1719942479213,2.464,3423.9,3423.7,2.92081]
[1719942479525,1.37911615,3423.8,3423.7,2.92081]
[1719942481479,0.4119189,3424.8,3424.7,2.91996]
[1719942481480,2.4560189,3424.8,3424.7,2.91996]
[1719942481674,2.4560189,3424.8,3424.7,5.83992]
[1719942481675,0.61463474,3424.8,3424.7,5.83992]
[1719942481925,0.62466493,3424.8,3424.7,6.88892]
[1719942482080,0.62466493,3424.8,3424.7,5.83992]
[1719942482842,0.6245649,3424.8,3424.7,5.83992]
[1719942483328,0.1189189,3424.8,3424.7,5.83992]
[1719942484217,0.1189189,3424.8,3424.7,2.91996]
[1719942484625,0.6246119,3424.8,3424.7,2.91996]
[1719942484812,0.6246119,3424.8,3424.5,2.92008]
[1719942485018,0.505693,3424.7,3424.3,2.92025]
[1719942485189,0.505693,3424.7,3424.0,5.92048]
[1719942485392,2.3308,3424.6,3424.0,5.92048]
[1719942485634,0.505693,3424.5,3424.1,2.92047]
[1719942487393,2.3308,3424.6,3424.1,2.92047]
[1719942488627,0.1189189,3424.8,3424.4,2.92015]
[1719942488995,0.1189189,3424.8,3424.5,2.92013]
[1719942490948,0.1189189,3424.8,3424.6,2.92002]
[1719942491246,0.1189189,3424.8,3424.7,2.91996]
[1719942494813,0.1189189,3424.8,3424.5,2.92013]
[1719942495556,0.1189189,3424.8,3424.3,2.92026]
[1719942495716,0.1189189,3424.8,3424.3,2.92025]
[1719942495913,0.1189189,3424.8,3424.4,2.92016]
[1719942496563,0.1189189,3424.8,3424.5,2.92011]
[1719942497049,0.1189189,3424.8,3424.6,2.92003]
[1719942498035,0.1189189,3424.8,3424.7,2.91996]
[1719942498238,0.1189189,3424.8,3424.7,3.96896]
[1719942499876,0.1189189,3424.8,3424.5,2.92005]
[1719942500395,0.1189189,3424.8,3424.5,5.84012]
[1719942500675,0.1189189,3424.8,3424.5,2.92005]
[1719942501776,0.1189189,3424.8,3424.3,2.92023]
[1719942502476,0.1189189,3424.8,3424.4,2.92021]
[1719942503575,0.1189189,3424.8,3424.7,2.91996]
[1719942503762,0.1189189,3424.8,3424.7,3.96896]
[1719942506703,0.62458172,3424.8,3424.7,3.96896]
[1719942506898,0.1189189,3424.8,3424.7,3.96896]
[1719942507396,0.1189189,3424.8,3424.7,6.94731427]
[1719942508258,0.62457199,3424.8,3424.7,6.94731427]
[1719942509986,0.1189189,3424.8,3424.7,6.94731427]
[1719942510712,0.62456994,3424.8,3424.7,5.89831427]
[1719942511007,0.62456994,3424.8,3424.7,6.94731427]
[1719942511314,0.62456994,3424.8,3424.7,4.02735427]
[1719942511602,0.62456994,3424.8,3424.7,3.96896]
[1719942511913,0.62456994,3424.8,3424.3,2.3264]
[1719942511914,0.62456994,3424.8,3424.4,1.049]
[1719942512215,0.50565104,3424.7,3424.3,2.92025]
[1719942513413,0.50570736,3424.6,3424.3,2.92025]
[1719942513717,2.4558189,3424.8,3424.3,2.92025]
[1719942513905,0.50570741,3424.7,3424.3,2.92025]
[1719942514114,0.50570741,3424.6,3424.3,2.92025]
[1719942514423,0.50570741,3424.5,3424.3,2.92025]
[1719942514581,2.4558189,3424.8,3424.3,2.92025]
[1719942514782,0.5057069,3424.7,3424.3,2.92025]
[1719942515032,0.5057069,3424.6,3424.3,2.92025]
[1719942515225,2.4558189,3424.8,3424.3,2.92025]
[1719942515382,0.50570705,3424.7,3424.3,2.92025]
[1719942515586,0.50570705,3424.6,3424.3,5.84048]
[1719942515784,0.50570705,3424.5,3424.4,1.049]
[1719942516316,0.50570705,3424.5,3424.4,3.96921]
[1719942516514,2.4558189,3424.8,3424.4,3.96921]
[1719942516717,0.50570398,3424.5,3424.4,3.96921]
[1719942517123,0.50570395,3424.5,3424.4,3.96921]
[1719942517882,0.50570395,3424.5,3424.4,6.88942]
[1719942519854,0.1189189,3424.8,3424.6,2.92002]
[1719942520228,0.50567905,3424.7,3424.6,2.92002]
[1719942523212,0.50568067,3424.7,3424.6,2.92002]
[1719942526649,0.50568141,3424.7,3424.6,2.92002]
[1719942526806,0.1189189,3424.8,3424.6,2.92002]
[1719942527008,0.50568004,3424.7,3424.6,2.92002]
[1719942529613,0.1189189,3424.8,3424.6,2.92002]
[1719942529924,1.0113466,3424.7,3424.6,2.92002]
[1719942533042,1.01134943,3424.7,3424.6,2.92002]
[1719942536128,0.1189189,3424.8,3424.6,2.92002]
[1719942536330,0.50567741,3424.7,3424.6,2.91998]
[1719942537348,0.50567741,3424.7,3424.6,2.97837509]
[1719942537529,0.1189189,3424.8,3424.7,2.91996]
[1719942537732,0.1189189,3424.8,3424.7,3.96896]
[1719942537936,0.62457168,3424.8,3424.7,3.96896]
[1719942539558,0.62457054,3424.8,3424.7,3.96896]
[1719942539921,0.1189189,3424.8,3424.7,3.96896]
[1719942540533,0.62457055,3424.8,3424.7,3.96896]
[1719942541923,0.1189189,3424.8,3424.7,3.96896]
[1719942542746,0.62455982,3424.8,3424.7,3.96896]
[1719942544273,0.62455982,3424.8,3424.7,6.94731489]
[1719942544460,0.1189189,3424.8,3424.7,6.94731489]
[1719942544980,0.1189189,3424.8,3424.7,9.94731489]
[1719942545351,0.1189189,3424.8,3424.7,12.80888]
[1719942545553,0.1189189,3424.8,3424.7,15.13528]
[1719942547036,0.1189189,3424.8,3424.7,15.68528]
[1719942548748,0.1189189,3424.8,3424.7,3.0]
[1719942548954,0.1189189,3424.8,3424.7,2.91996]
[1719942549155,0.1189189,3424.8,3424.7,8.83992]
[1719942549663,0.1189189,3424.8,3424.7,9.88892]
[1719942554290,0.1189189,3424.8,3424.7,8.83992]
[1719942554452,0.1189189,3424.8,3424.7,9.88892]
[1719942557272,0.1189189,3424.8,3424.7,8.83992]
[1719942557583,0.1189189,3424.8,3424.7,9.88892]
[1719942572185,0.62454328,3424.8,3424.7,8.83992]
[1719942573314,0.1189189,3424.8,3424.7,8.83992]
[1719942578232,0.624546,3424.8,3424.7,8.83992]
[1719942580055,0.1189189,3424.8,3424.7,8.83992]
[1719942580405,0.6245446,3424.8,3424.7,8.83992]
[1719942580603,0.62454456,3424.8,3424.7,8.83992]
[1719942582116,3.01604456,3424.8,3424.7,8.83992]
[1719942583340,2.5104189,3424.8,3424.7,8.83992]
[1719942583551,3.01605132,3424.8,3424.7,8.83992]
[1719942584047,3.016054,3424.8,3424.7,8.83992]
[1719942584422,3.01605395,3424.8,3424.7,8.83992]
[1719942587654,0.1189189,3424.8,3424.7,8.83992]
[1719942587854,0.62455097,3424.8,3424.7,8.83992]
[1719942591047,0.1189189,3424.8,3424.7,8.83992]
[1719942591250,0.62454426,3424.8,3424.7,8.83992]
[1719942591478,0.1189189,3424.8,3424.7,8.83992]
[1719942591639,0.62453785,3424.8,3424.7,8.83992]
[1719942594089,0.1189189,3424.8,3424.7,8.83992]
[1719942599546,0.62454371,3424.8,3424.7,8.83992]
[1719942600700,0.62455061,3424.8,3424.7,8.83992]
[1719942601604,0.1189189,3424.8,3424.7,8.83992]
[1719942601773,0.62454132,3424.8,3424.7,8.83992]
[1719942603181,0.62453923,3424.8,3424.7,8.83992]
[1719942603586,0.62453935,3424.8,3424.7,8.83992]
[1719942604200,0.1189189,3424.8,3424.7,8.83992]
[1719942607410,0.1189189,3424.8,3424.7,9.88892]
[1719942611389,0.1189189,3424.8,3424.7,12.80888]
[1719942617190,0.0689189,3424.8,3424.7,12.80888]
[1719942621279,0.02911813,3425.1,3425.0,8.7591]
[1719942621536,0.02911813,3425.1,3425.0,12.8081]
[1719942625021,0.02911813,3425.1,3425.0,11.7591]
[1719942625202,0.02911813,3425.1,3425.0,12.8081]
[1719942625414,0.02911813,3425.1,3425.0,11.7591]
[1719942625816,0.02911813,3425.1,3425.0,12.8081]
[1719942626197,2.40531813,3425.1,3425.0,8.8394]
[1719942626594,2.9109044,3425.1,3425.0,8.8394]
[1719942626801,2.40531813,3425.1,3425.0,8.8394]
[1719942629499,0.02911813,3425.1,3425.0,8.8394]
[1719942631104,0.02911813,3425.1,3425.0,9.8884]
[1719942635195,0.02911813,3425.1,3425.0,8.8394]
[1719942635451,2.28621813,3425.1,3425.0,8.8394]
[1719942635600,2.7918098,3425.1,3425.0,8.8394]
[1719942637260,2.7918098,3425.1,3425.0,9.8884]
[1719942638108,2.28621813,3425.1,3425.0,9.8884]
[1719942638722,2.79180998,3425.1,3425.0,9.8884]
[1719942639231,2.28621813,3425.1,3425.0,9.8884]
[1719942640654,2.7918022,3425.1,3425.0,9.8884]
[1719942640851,2.28621813,3425.1,3425.0,9.8884]
[1719942641132,2.79180458,3425.1,3425.0,9.8884]
[1719942643627,2.79180458,3425.1,3425.0,8.8394]
[1719942643828,2.79180458,3425.1,3425.0,9.8884]
[1719942644410,2.28621813,3425.1,3425.0,9.8884]
[1719942644606,2.79180843,3425.1,3425.0,9.8884]
[1719942645017,2.79180965,3425.1,3425.0,9.8884]
[1719942647526,2.79180965,3425.1,3424.9,2.91974]
[1719942647731,2.28621813,3425.1,3424.9,2.91974]
[1719942647944,0.50563796,3425.0,3424.9,2.91974]
[1719942648729,0.50563796,3425.0,3424.9,3.96874]
[1719942650356,0.50563796,3425.0,3424.9,6.88853]
[1719942650763,2.28621813,3425.1,3425.0,2.9197]
[1719942651051,2.79181494,3425.1,3425.0,2.9197]
[1719942652652,2.79181494,3425.1,3425.0,5.8394]
[1719942654361,2.79181577,3425.1,3425.0,5.8394]
[1719942656131,0.53471577,3425.1,3425.0,5.8394]
[1719942657669,0.53469733,3425.1,3425.0,5.8394]
[1719942658159,0.53469717,3425.1,3425.0,5.8394]
[1719942659938,0.02911813,3425.1,3425.0,5.8394]
[1719942660467,0.02911813,3425.1,3425.0,8.7591]
[1719942661039,0.53468671,3425.1,3425.0,8.7591]
[1719942661361,0.53468611,3425.1,3425.0,8.7591]
[1719942661552,0.53468501,3425.1,3425.0,8.7591]
[1719942661738,0.02911813,3425.1,3425.0,8.7591]
[1719942665854,0.53469258,3425.1,3425.0,8.7591]
[1719942666037,0.02911813,3425.1,3425.0,8.7591]
[1719942668960,0.02911813,3425.1,3425.0,11.7591]
[1719942669595,0.02911813,3425.1,3425.0,12.8081]
[1719942676197,0.02911813,3425.1,3425.0,11.7591]
[1719942676505,0.02911813,3425.1,3425.0,12.8081]
[1719942682140,0.02911813,3425.1,3425.0,11.7591]
[1719942682356,0.02911813,3425.1,3425.0,12.8081]
[1719942683847,0.02911813,3425.1,3425.0,8.8394]
[1719942684033,2.44331813,3425.1,3425.0,8.8394]
[1719942691544,2.44331813,3425.1,3425.0,9.8884]
[1719942695274,2.44331813,3425.1,3425.0,5.9197]
[1719942695436,2.44331813,3425.1,3425.0,2.9197]
[1719942695638,2.94891834,3425.1,3425.0,2.9197]
[1719942696070,2.94892842,3425.1,3425.0,2.9197]
[1719942698472,2.94892842,3425.1,3424.8,2.91983]
[1719942698683,2.44331813,3425.1,3424.9,5.91978]
[1719942698871,2.44331813,3425.1,3424.9,2.91978]
[1719942698872,0.50562723,3425.0,3424.9,2.91978]
[1719942699042,0.50562723,3425.0,3424.9,5.91978]
[1719942700488,2.2677,3424.9,3423.8,1.169259]
[1719942700642,0.50566076,3424.8,3424.5,2.92012]
[1719942700846,2.2677,3424.9,3424.6,3.0]
[1719942701048,0.50565686,3424.8,3424.6,3.0]
[1719942701242,2.2677,3424.9,3424.6,3.0]
[1719942701557,0.50566861,3424.8,3424.6,3.0]
[1719942701870,0.50566861,3424.7,3424.6,3.0]
[1719942702047,0.50568054,3424.7,3424.6,3.0]
[1719942702246,2.93668054,3424.7,3424.6,3.0]
[1719942702683,2.93668054,3424.7,3424.4,5.92021]
[1719942702973,2.431,3424.7,3424.4,5.92021]
[1719942703361,2.431,3424.7,3424.5,2.92012]
[1719942703563,2.431,3424.7,3424.6,3.0]
[1719942704960,2.431,3424.7,3424.1,2.92044]
[1719942705367,2.80831887,3424.6,3424.1,5.84084]
[1719942705662,2.3026,3424.4,3424.1,2.9204]
[1719942706099,2.3026,3424.4,3424.1,5.84082]
[1719942706268,2.3026,3424.4,3424.0,2.92054]
[1719942706476,2.3026,3424.4,3424.1,5.92046]
[1719942707378,2.3026,3424.4,3424.1,8.84086]
[1719942708300,2.3026,3424.4,3424.2,2.92037]
[1719942713067,2.3026,3424.4,3424.0,2.92054]
[1719942714392,2.365,3424.2,3424.0,2.92054]
[1719942715270,2.365,3424.2,3423.8,2.92067]
[1719942715468,2.365,3424.2,3423.9,5.92063]
[1719942717296,2.365,3424.2,3423.6,3.96988]
[1719942717573,2.365,3424.2,3423.7,5.92075]
[1719942718905,2.365,3424.2,3423.8,2.9207]
[1719942721193,2.365,3424.2,3423.8,3.9697]
[1719942721394,2.365,3424.2,3424.0,2.92054]
[1719942723385,2.365,3424.2,3424.1,2.92047]
[1719942728627,2.87076632,3424.2,3424.1,2.92047]
[1719942728824,2.365,3424.2,3424.1,2.92047]
[1719942729023,2.87076198,3424.2,3424.1,2.92047]
[1719942729232,2.87075789,3424.2,3424.1,2.92047]
[1719942730035,2.87075789,3424.2,3424.0,2.92054]
[1719942730335,0.50577549,3424.1,3424.0,2.92054]
[1719942730573,0.50578309,3424.1,3424.0,2.92054]
[1719942733519,0.50577051,3424.1,3424.0,2.92054]
[1719942733734,2.4039,3424.5,3424.0,2.92054]
[1719942733894,0.50576289,3424.1,3424.0,2.92054]
[1719942734295,0.50576077,3424.1,3424.0,2.92054]
[1719942736191,2.93296077,3424.1,3424.0,2.92054]
[1719942737009,2.93296077,3424.1,3423.8,5.84137]
[1719942737010,2.93298745,3424.1,3423.8,5.84137]
[1719942737212,0.50578959,3424.0,3423.9,2.92064]
[1719942738094,2.2513,3423.9,3422.9,2.6232513]
[1719942738310,0.50578959,3423.8,3423.3,2.92108]
[1719942738511,0.50578959,3423.8,3423.4,2.92101]
[1719942738736,0.50578959,3423.8,3423.5,1.049]
[1719942739103,0.50578959,3423.8,3423.4,2.92101]
[1719942739305,0.50578959,3423.8,3423.6,1.049]
[1719942739526,0.50415472,3423.8,3423.6,1.049]
[1719942740148,2.2513,3423.9,3423.6,1.049]
[1719942740645,8.7623,3423.8,3423.6,1.049]
[1719942744159,2.2851,3423.7,3423.3,2.92115]
[1719942744319,8.7623,3423.6,3423.5,1.049]
[1719942745002,8.7623,3423.6,3423.2,2.92117]
[1719942745203,8.7623,3423.6,3423.5,1.049]
[1719942745443,2.3526,3423.5,3422.9,2.92146]
[1719942745742,7.7133,3423.4,3422.9,2.92146]
[1719942745945,7.7133,3423.4,3423.3,1.049]
[1719942748858,7.7133,3423.4,3423.3,3.97015]
[1719942760475,7.7133,3423.4,3423.3,9.1428]
[1719942766784,7.7133,3423.4,3423.3,12.06395]
[1719942770901,7.7133,3423.4,3423.3,9.81245]
[1719942771744,7.7133,3423.4,3423.3,6.8913]
[1719942772939,7.7133,3423.4,3423.3,5.8423]
[1719942773090,7.7133,3423.4,3423.3,6.8913]
[1719942782208,8.21915692,3423.4,3423.3,3.97015]
[1719942782409,10.67065692,3423.4,3423.3,3.97015]
[1719942782755,10.67065228,3423.4,3423.3,3.97015]
[1719942782962,10.67065228,3423.4,3423.3,1.049]
[1719942785070,10.1648,3423.4,3423.3,1.049]
[1719942785218,10.67066144,3423.4,3423.3,1.049]
[1719942788295,10.67068063,3423.4,3423.3,1.049]
[1719942788589,10.67068095,3423.4,3423.3,1.049]
[1719942789551,8.21918095,3423.4,3423.0,2.92134]
[1719942789779,2.89338095,3423.3,3423.2,1.049]
[1719942789944,2.89338095,3423.3,3423.0,2.92134]
[1719942789945,10.60668095,3423.3,3423.0,2.92134]
[1719942790146,0.50588095,3423.2,3423.0,2.92134]
[1719942790392,6.6643,3423.1,3423.0,2.92134]
[1719942790586,7.17018095,3423.1,3423.0,3.97034]
[1719942791386,6.6643,3423.1,3423.0,3.97034]
[1719942791589,7.17022112,3423.1,3423.0,3.97034]
[1719942792448,6.6643,3423.1,3423.0,3.97034]
[1719942793295,6.6643,3423.1,3423.0,2.92134]
[1719942793593,6.6643,3423.1,3423.0,3.97034]
[1719942795050,6.6643,3423.1,3423.0,1.049]
[1719942795259,6.6643,3423.1,3422.9,2.92149]
[1719942795592,6.6643,3423.1,3423.0,1.049]
[1719942805816,9.0897,3423.1,3422.8,2.92152]
[1719942805977,0.50592633,3423.0,3422.8,2.92152]
[1719942806314,5.6153,3422.9,3422.8,2.92152]
[1719942806517,6.12122633,3422.9,3422.8,3.97052]
[1719942807510,6.12122633,3422.9,3422.8,1.049]
[1719942807685,6.12126993,3422.9,3422.8,1.049]
[1719942809091,8.57276993,3422.9,3422.8,1.049]
[1719942809426,8.57276993,3422.9,3422.6,2.92172]
[1719942809580,8.0668,3422.9,3422.8,1.049]
[1719942809782,8.57278042,3422.9,3422.8,1.049]
[1719942811027,8.57278066,3422.9,3422.8,1.049]
[1719942811378,8.57278129,3422.9,3422.8,1.049]
[1719942817547,8.57277829,3422.9,3422.8,1.049]
[1719942819255,8.57277727,3422.9,3422.8,1.049]
[1719942820747,8.5727757,3422.9,3422.8,1.049]
[1719942821420,8.5727757,3422.9,3422.8,3.97058]
[1719942821626,6.1212757,3422.9,3422.8,3.97058]
[1719942822321,5.6153,3422.9,3422.8,3.97058]
[1719942823233,6.12126192,3422.9,3422.8,3.97058]
[1719942824267,5.6153,3422.9,3422.8,3.97058]
[1719942824561,6.12125963,3422.9,3422.8,3.97058]
[1719942826936,5.6153,3422.9,3422.8,3.97058]
[1719942827127,6.12126139,3422.9,3422.8,3.97058]
[1719942827339,6.12125854,3422.9,3422.8,3.97058]
[1719942830379,5.6153,3422.9,3422.8,3.97058]
[1719942830586,6.12126301,3422.9,3422.8,3.97058]
[1719942833901,6.12126533,3422.9,3422.8,3.97058]
[1719942834064,6.12126533,3422.9,3422.8,6.89216]
[1719942837180,6.12126067,3422.9,3422.8,6.89216]
[1719942840393,6.12121414,3422.9,3422.8,6.89216]
[1719942840801,5.6153,3422.9,3422.8,6.89216]
[1719942841102,6.12122274,3422.9,3422.8,6.89216]
[1719942841515,6.12122274,3422.9,3422.8,9.81374]
[1719942841810,5.40448738,3422.9,3422.8,9.81374]
[1719942845529,5.40448738,3422.9,3422.8,8.76474]
[1719942845819,5.40448738,3422.9,3422.8,9.81374]
[1719942847018,0.02911813,3424.5,3423.8,2.92064]
[1719942847019,2.2755,3424.4,3423.8,2.92064]
[1719942847354,2.2755,3424.4,3423.9,2.92061]
[1719942847355,0.5058363,3424.3,3423.9,2.92061]
[1719942847538,2.2755,3424.4,3424.2,1.049]
[1719942847738,0.50582779,3424.3,3424.2,1.049]
[1719942847940,9.26682779,3424.3,3424.2,1.049]
[1719942849352,9.26682967,3424.3,3424.2,1.049]
[1719942850823,9.26682967,3424.3,3424.2,3.96939]
[1719942851728,9.26682967,3424.3,3424.1,2.9204]
[1719942851933,11.0135,3424.3,3424.2,1.049]
[1719942852160,11.51928193,3424.3,3424.2,1.049]
[1719942852678,11.51928344,3424.3,3424.2,1.049]
[1719942852977,11.1645,3424.3,3424.2,3.96939]
[1719942853115,11.67027955,3424.3,3424.2,3.96939]
[1719942853657,11.1645,3424.3,3424.2,3.96939]
[1719942856067,8.761,3424.3,3424.2,3.96939]
[1719942858324,8.761,3424.3,3424.2,2.92039]
[1719942858623,8.761,3424.3,3424.2,3.96939]
[1719942864967,11.55517697,3424.3,3424.2,3.96939]
[1719942865469,11.55518362,3424.3,3424.2,3.96939]
[1719942865670,11.55517788,3424.3,3424.2,3.96939]
[1719942865837,11.55517878,3424.3,3424.2,3.96939]
[1719942866634,9.26677878,3424.3,3424.2,3.96939]
[1719942867560,8.761,3424.3,3424.2,3.96939]
[1719942872402,9.26675112,3424.3,3424.2,3.96939]
[1719942872610,9.26674488,3424.3,3424.2,3.96939]
[1719942872904,8.761,3424.3,3424.2,3.96939]
[1719942873096,9.26674213,3424.3,3424.2,3.96939]
[1719942874774,9.266741,3424.3,3424.2,3.96939]
[1719942875602,9.266741,3424.3,3424.2,6.88978]
[1719942875603,9.2667371,3424.3,3424.2,6.88978]
[1719942878508,9.26671069,3424.3,3424.2,6.88978]
[1719942878876,9.26671022,3424.3,3424.2,6.88978]
[1719942880486,9.26671022,3424.3,3424.2,5.84078]
[1719942880811,9.26671022,3424.3,3424.2,6.88978]
[1719942882012,8.761,3424.3,3424.2,6.88978]
[1719942882212,9.26672294,3424.3,3424.2,6.88978]
[1719942884375,8.761,3424.3,3424.2,6.88978]
[1719942884575,9.26672,3424.3,3424.2,6.88978]
[1719942885216,8.761,3424.3,3424.2,6.88978]
[1719942885604,9.2667235,3424.3,3424.2,6.88978]
[1719942888601,9.26672832,3424.3,3424.2,6.88978]
[1719942891840,8.761,3424.3,3424.2,3.96939]
[1719942892053,11.63095784,3424.3,3424.2,3.96939]
[1719942892406,11.63095996,3424.3,3424.2,3.96939]
[1719942895265,11.63095535,3424.3,3424.2,3.96939]
[1719942898212,9.26675535,3424.3,3424.2,3.96939]
[1719942898566,9.26674619,3424.3,3424.2,3.96939]
[1719942899245,8.761,3424.3,3424.2,3.96939]
[1719942899408,9.26674942,3424.3,3424.2,3.96939]
[1719942899610,8.761,3424.3,3424.2,3.96939]